fUSD/lending_fUSD_20240203
["ID","MTS","AMOUNT","RATE_DAILY","PERIOD"]
[313210408,1706953838352,-1861.0,0.00022958,2]
[313210410,1706953838362,-954.609,0.00022958,2]
[313210412,1706953838371,-2285.959,0.00022958,2]
[313210414,1706953838381,-1233.0,0.00022958,2]
[313210416,1706953838389,-258.168,0.00022958,2]
[313210417,1706953838399,-152.042,0.00022958,2]
[313210419,1706953838407,-321.727,0.00022958,2]
[313210421,1706953838418,-860.0,0.00022958,2]
[313210423,1706953838427,-247.474,0.00022958,2]
[313210425,1706953838435,-180.0,0.00022958,2]
[313210427,1706953838444,-4227.015,0.00022958,2]
[313210428,1706953838453,-432.121,0.00022958,2]
[313210430,1706953838462,-179.461,0.00022958,2]
[313210432,1706953838471,-163.463,0.00022958,2]
[313210434,1706953838481,-1044.436,0.00022958,2]
[313210436,1706953838490,-150.414,0.00022958,2]
[313210438,1706953838500,-151.409,0.00022958,2]
[313210440,1706953838510,-151.101,0.00022958,2]
[313210442,1706953838518,-150.196,0.00022958,2]
[313210444,1706953838527,-500.0,0.00022973,2]
[313210446,1706953838536,-813.29,0.00022973,2]
[313210448,1706953838546,-500.0,0.00022973,2]
[313210449,1706953838554,-631.36,0.00022973,2]
[313210451,1706953838563,-2418.22,0.00022973,2]
[313210453,1706953838573,-500.0,0.00022973,2]
[313210455,1706953838582,-500.0,0.00022973,2]
[313210457,1706953838591,-500.0,0.00022973,2]
[313210459,1706953838600,-500.0,0.00022973,2]
[313210461,1706953838609,-500.0,0.00022973,2]
[313210463,1706953838618,-500.0,0.00022976,2]
[313210476,1706953838736,-500.0,0.00022976,2]
[313210477,1706953838745,-500.0,0.00022976,2]
[313210479,1706953838755,-500.0,0.00022976,2]
[313210481,1706953838764,-500.0,0.00022976,2]
[313210483,1706953838773,-500.0,0.00022976,2]
[313210485,1706953838783,-500.0,0.00022976,2]
[313210487,1706953838792,-500.0,0.00022976,2]
[313210489,1706953838801,-500.0,0.00022976,2]
[313210491,1706953838810,-677.31,0.00022976,2]
[313210493,1706953838819,-500.0,0.00022976,2]
[313210494,1706953838830,-500.0,0.00022976,2]
[313210496,1706953838838,-1110.61,0.00022976,2]
[313210498,1706953838847,-500.0,0.00022976,2]
[313210500,1706953838856,-1000.0,0.00022977,2]
[313210501,1706953838865,-1000.0,0.00022977,2]
[313210502,1706953838874,-1000.0,0.00022977,2]
[313210503,1706953838882,-1000.0,0.00022977,2]
[313210504,1706953838891,-1000.0,0.00022977,2]
[313210505,1706953838900,-166.1091,0.00022977,2]
[313210506,1706953838911,-500.0,0.00022977,2]
[313210507,1706953838920,-500.0,0.00022977,2]
[313210508,1706953838929,-500.0,0.00022977,2]
[313210509,1706953838938,-500.0,0.00022977,2]
[313210510,1706953838947,-500.0,0.00022977,2]
[313210511,1706953838956,-500.0,0.00022977,2]
[313210512,1706953838965,-500.0,0.00022977,2]
[313210513,1706953838974,-500.0,0.00022977,2]
[313210515,1706953838984,-500.0,0.00022977,2]
[313210517,1706953838993,-500.0,0.00022977,2]
[313210519,1706953839002,-500.0,0.00022977,2]
[313210521,1706953839011,-455.6729,0.00022977,2]
[313210523,1706953839020,-198.19783749,0.00022988,2]
[313210525,1706953839029,-1087.22821345,0.00022997,3]
[313210527,1706953839038,-931.69170354,0.00022997,2]
[313210529,1706953839047,-155.0,0.00022997,2]
[313210531,1706953839056,-198.99655567,0.00022997,4]
[313210533,1706953839065,-2686.70430794,0.00022997,2]
[313210535,1706953839074,-500.0,0.00022997,2]
[313210536,1706953839083,-413.1086148,0.00022998,3]
[313210538,1706953839093,-23785.4773507,0.00022998,2]
[313210540,1706953839102,-829.81914014,0.00022998,2]
[313210542,1706953839111,-1149.22346035,0.00022998,2]
[313210544,1706953839120,-771.4729721,0.00022998,2]
[313210546,1706953839129,-1013.26547405,0.00022998,2]
[313210549,1706953839138,-257.0325133,0.00022998,2]
[313210550,1706953839148,-178.57868833,0.00022998,2]
[313210552,1706953839158,-2156.00757728,0.00022998,2]
[313210555,1706953839167,-803.32188729,0.00022998,2]
[313210557,1706953839177,-354.87715265,0.00022998,2]
[313210559,1706953839186,-1439.13827967,0.00022998,2]
[313210561,1706953839195,-708.09167908,0.00022998,2]
[313210563,1706953839204,-946.60101861,0.00022998,2]
[313210565,1706953839214,-9444.6888029,0.00022998,2]
[313210567,1706953839223,-164.96152334,0.00022998,2]
[313210569,1706953839232,-24394.97966401,0.00022998,2]
[313210571,1706953839242,-205.75527007,0.00022998,2]
[313210572,1706953839250,-4655.74947603,0.00022998,2]
[313210574,1706953839260,-176.89925003,0.00022998,2]
[313210576,1706953839269,-43051.73254667,0.00022998,2]
[313210578,1706953839278,-2000.0,0.00022998,2]
[313210581,1706953839288,-3160.98074311,0.00022999,2]
[313210582,1706953839297,-1001.9355,0.00022999,2]
[313210584,1706953839306,-150.72784523,0.00022999,2]
[313210586,1706953839315,-1000.0,0.00022999,2]
[313210588,1706953839324,-2204.50531989,0.00022999,2]
[313210590,1706953839334,-500.0,0.00022999,2]
[313210592,1706953839345,-500.0,0.00022999,2]
[313210594,1706953839355,-500.0,0.00022999,2]
[313210596,1706953839364,-500.0,0.00022999,2]
[313210597,1706953839375,-500.0,0.00022999,2]
[313210599,1706953839384,-500.0,0.00022999,2]
[313210601,1706953839394,-500.0,0.00022999,2]
[313210603,1706953839404,-500.0,0.00022999,2]
[313210605,1706953839415,-515.13299371,0.00022999,2]
[313210607,1706953839424,-313.57682683,0.00022999,2]
[313210609,1706953839434,-322.80751672,0.00022999,2]
[313210611,1706953839444,-408.79959269,0.00022999,2]
[313210613,1706953839453,-322.80751672,0.00022999,2]
[313210615,1706953839463,-408.79959269,0.00022999,2]
[313210617,1706953839472,-322.80751672,0.00022999,2]
[313210619,1706953839481,-408.79959269,0.00022999,2]
[313210621,1706953839491,-322.80751672,0.00022999,2]
[313210623,1706953839500,-408.79959269,0.00022999,2]
[313210624,1706953839509,-322.80751672,0.00022999,2]
[313210626,1706953839518,-322.80751672,0.00022999,2]
[313210628,1706953839527,-408.79959269,0.00022999,2]
[313210630,1706953839536,-322.80751672,0.00022999,2]
[313210632,1706953839546,-408.79959269,0.00022999,2]
[313210634,1706953839555,-322.80751672,0.00022999,2]
[313210636,1706953839565,-408.79959269,0.00022999,2]
[313210638,1706953839574,-322.80751672,0.00022999,2]
[313210640,1706953839583,-408.79959269,0.00022999,2]
[313210642,1706953839592,-322.80751672,0.00022999,2]
[313210644,1706953839601,-408.79959269,0.00022999,2]
[313210646,1706953839610,-408.79959269,0.00022999,2]
[313210648,1706953839619,-185.2541805,0.00023,3]
[313210650,1706953839628,-175.59229432,0.00023,3]
[313210652,1706953839637,-393818.10200505,0.00023,3]
[313210654,1706953839647,-1390578.69059801,0.00023,2]
[313210656,1706953839656,-155.29222693,0.00023,2]
[313210658,1706953839666,-412246.32272918,0.00023,2]
[313210660,1706953839674,-106424.45712915,0.00023,2]
[313210662,1706953839684,-956781.24822713,0.00023,2]
[313210664,1706953839693,-635249.10107461,0.00023,2]
[313210666,1706953839707,-25074.18957787,0.00023,2]
[313210668,1706953839718,-1753.99361383,0.00023,2]
[313210742,1706953840369,-454.62,0.000229,2]
[313210813,1706953841035,-470.69889728,0.000229,2]
[313210821,1706953841094,-36062.86110272,0.000229,2]
[313210823,1706953841104,-500.0,0.00022976,2]
[313210825,1706953841113,-105975.54569471,0.00023,2]
[313210827,1706953841126,-1749.20646998,0.00023,2]
[313210829,1706953841138,-286.2835821,0.00023,2]
[313210832,1706953841156,-950.1887247,0.00023,2]
[313210834,1706953841168,-5829.02392874,0.00023,2]
[313210836,1706953841180,-13394.24026246,0.00023,2]
[313210838,1706953841191,-899.0056698,0.00023,2]
[313210841,1706953841208,-566.05,0.00023,2]
[313210844,1706953841219,-769.90907719,0.00023,2]
[313210850,1706953841271,-1000.0,0.00023,2]
[313210857,1706953841327,-180118.32417602,0.00023,2]
[313210859,1706953841347,-1487.31897559,0.00023,2]
[313210864,1706953841385,-500.0,0.00022899,2]
[313210866,1706953841395,-446.66328717,0.00023,2]
[313210946,1706953845619,158.57,0.00020404,2]
[313210947,1706953845633,-500.0,0.00022899,2]
[313210948,1706953845642,-500.0,0.00022899,2]
[313210949,1706953845652,-1469.67021326,0.00022999,2]
[313210950,1706953845661,-300.02,0.00022999,2]
[313210951,1706953845671,-155.0,0.00022999,2]
[313210952,1706953845682,-6504.92104624,0.00023,2]
[313210953,1706953845702,-19751.09687356,0.00023,2]
[313210954,1706953845780,-4582.85592,0.00023,2]
[313210955,1706953845792,-11375.00000019,0.00023,2]
[313210956,1706953845804,-752.14121968,0.00023,2]
[313210957,1706953845816,-40372.71854934,0.00023,2]
[313210958,1706953845828,-5103.12280005,0.00023,2]
[313210959,1706953845840,-6197.81550212,0.00023,2]
[313210960,1706953845851,-651.33802245,0.00023,2]
[313210961,1706953845897,-1052.02458568,0.00023,2]
[313210962,1706953845907,-9704.13693686,0.00023,2]
[313210963,1706953845918,-24872.42085532,0.00023,2]
[313210964,1706953845930,-9498.10814416,0.00023,2]
[313210965,1706953845942,-10470.89458384,0.00023,2]
[313210966,1706953845971,-1076.55954296,0.00023,2]
[313210967,1706953845982,-15700.17262063,0.00023,2]
[313210969,1706953846017,-932.14062538,0.00023,2]
[313211025,1706953871092,218.07,0.00022192,2]
[313211026,1706953881055,221.37,0.0002217,2]
[313211027,1706953904257,153.38,0.00022326,2]
[313211028,1706954024095,150.0,0.00022,2]
[313211030,1706954059461,169.23,0.0002206,2]
[313211031,1706954133886,207.0,0.0002205,2]
[313211032,1706954154867,303.68,0.00022045,2]
[313211033,1706954189722,564.46,0.0002204,2]
[313211035,1706954229518,285.56,0.00022032,3]
[313211036,1706954271583,154.99,0.00020126,2]
[313211038,1706954311958,209.07,0.00022032,2]
[313211039,1706954353940,153.38,0.00022189,2]
[313211040,1706954411055,500.0,0.000219,2]
[313211041,1706954469418,12343.19182781,0.00022196,2]
[313211042,1706954657762,151.47981337,0.000225,2]
[313211043,1706954688984,154.99,0.00019997,2]
[313211044,1706954721294,174.22,0.00021864,2]
[313211045,1706954755538,153.38,0.00022006,2]
[313211046,1706954759284,548.43,0.00021842,2]
[313211047,1706954799788,1976.90712223,0.00022196,2]
[313211048,1706954956490,1080.70099796,0.00020696,2]
[313211049,1706954986821,2183.02682327,0.00022306,2]
[313211050,1706955003744,1100.85350938,0.00020696,2]
[313211051,1706955008920,154452.20519369,0.00022,2]
[313211052,1706955010268,6101.18601201,0.00020696,2]
[313211053,1706955016038,242.94,0.00021845,2]
[313211054,1706955025748,1100.85350938,0.00020696,2]
[313211055,1706955028260,1130.58677721,0.00020696,2]
[313211442,1706955041115,-338.23569729,0.00022528,2]
[313211444,1706955041124,-151.47981324,0.00022529,2]
[313211446,1706955041134,-151.47981324,0.00022557,2]
[313211448,1706955041143,-691.58394825,0.00022572,2]
[313211450,1706955041152,-177.39,0.00022574,2]
[313211452,1706955041161,-151.47981324,0.00022586,2]
[313211454,1706955041171,-716.11,0.00022599,2]
[313211456,1706955041180,-4657.3744,0.00022599,2]
[313211458,1706955041189,-150.0,0.000226,2]
[313211461,1706955041198,-151.47981324,0.00022614,2]
[313211462,1706955041207,-1616.22,0.00022614,2]
[313211464,1706955041216,-151.47981324,0.00022643,2]
[313211467,1706955041226,-151.47981324,0.00022671,2]
[313211469,1706955041236,-150.0,0.00022699,2]
[313211470,1706955041244,-23101.0,0.000227,2]
[313211473,1706955041254,-3736.0,0.000227,2]
[313211475,1706955041264,-500.0,0.000227,2]
[313211477,1706955041273,-151.47981324,0.000227,2]
[313211478,1706955041282,-151.47981324,0.00022729,2]
[313211481,1706955041293,-151.47981324,0.00022757,2]
[313211482,1706955041302,-151.47981324,0.00022786,2]
[313211484,1706955041312,-206.5926,0.00022799,2]
[313211486,1706955041321,-934.2019,0.00022799,2]
[313211489,1706955041331,-151.47981324,0.00022814,2]
[313211491,1706955041340,-151.47981324,0.00022843,2]
[313211492,1706955041349,-849.937,0.00022868,2]
[313211495,1706955041358,-711.314,0.00022868,2]
[313211496,1706955041367,-216.361,0.00022868,2]
[313211498,1706955041376,-1250.0,0.00022868,2]
[313211501,1706955041385,-427.0,0.00022868,2]
[313211502,1706955041394,-1005.778,0.00022868,2]
[313211505,1706955041404,-236.0,0.00022868,2]
[313211507,1706955041413,-1138.0,0.00022868,2]
[313211509,1706955041422,-320.0,0.00022868,2]
[313211511,1706955041431,-178.245,0.00022868,2]
[313211513,1706955041441,-151.47981324,0.00022871,2]
[313211514,1706955041450,-306.97180835,0.00022898,2]
[313211517,1706955041460,-1000.0,0.00022898,2]
[313211519,1706955041470,-1000.0,0.00022899,2]
[313211520,1706955041479,-6388.6161,0.00022899,2]
[313211523,1706955041489,-500.0,0.00022899,2]
[313211525,1706955041498,-417.3581,0.00022899,2]
[313211527,1706955041508,-643.65400857,0.00022899,2]
[313211529,1706955041517,-500.0,0.00022899,2]
[313211531,1706955041526,-500.0,0.00022899,2]
[313211533,1706955041535,-500.0,0.00022899,2]
[313211535,1706955041544,-500.0,0.00022899,2]
[313211537,1706955041554,-500.0,0.00022899,2]
[313211538,1706955041563,-500.0,0.00022899,2]
[313211540,1706955041572,-699.1,0.00022899,2]
[313211542,1706955041581,-853.54,0.00022899,2]
[313211543,1706955041591,-573.46,0.00022899,2]
[313211544,1706955041600,-500.0,0.00022899,2]
[313211545,1706955041609,-500.0,0.00022899,2]
[313211546,1706955041618,-500.0,0.00022899,2]
[313211547,1706955041628,-515.00358927,0.00022899,2]
[313211548,1706955041637,-567.65,0.00022899,2]
[313211550,1706955041647,-500.0,0.00022899,2]
[313211552,1706955041656,-500.0,0.00022899,2]
[313211553,1706955041665,-597.68,0.00022899,2]
[313211554,1706955041675,-500.0,0.00022899,2]
[313211555,1706955041684,-596.29,0.00022899,2]
[313211556,1706955041693,-500.0,0.00022899,2]
[313211557,1706955041702,-1079.0,0.00022899,2]
[313211558,1706955041711,-327.99356943,0.00022899,2]
[313211559,1706955041720,-1144.1,0.00022899,2]
[313211560,1706955041730,-617.33,0.00022899,2]
[313211561,1706955041740,-500.0,0.00022899,2]
[313211562,1706955041749,-1185.03,0.00022899,2]
[313211563,1706955041757,-500.0,0.00022899,2]
[313211564,1706955041767,-500.0,0.00022899,2]
[313211565,1706955041776,-500.0,0.00022899,2]
[313211566,1706955041785,-500.0,0.00022899,2]
[313211567,1706955041794,-941.22,0.00022899,2]
[313211568,1706955041803,-500.0,0.00022899,2]
[313211569,1706955041813,-500.0,0.00022899,2]
[313211570,1706955041823,-1104.25,0.000229,2]
[313211571,1706955041832,-151.47981324,0.000229,2]
[313211572,1706955041841,-378.34463133,0.000229,2]
[313211573,1706955041850,-378.34463133,0.000229,2]
[313211574,1706955041861,-378.34463133,0.000229,2]
[313211575,1706955041871,-378.34463133,0.000229,2]
[313211576,1706955041881,-378.34463133,0.000229,2]
[313211577,1706955041891,-5000.0,0.000229,2]
[313211578,1706955041903,-378.34463133,0.000229,2]
[313211579,1706955041912,-378.34463133,0.000229,2]
[313211580,1706955041921,-378.34463133,0.000229,2]
[313211581,1706955041930,-378.34463133,0.000229,2]
[313211582,1706955041939,-378.34463133,0.000229,2]
[313211583,1706955041947,-378.34463133,0.000229,2]
[313211584,1706955041956,-378.34463133,0.000229,2]
[313211585,1706955041965,-378.34463133,0.000229,2]
[313211586,1706955041974,-152.3401693,0.000229,2]
[313211587,1706955041984,-2281.13062069,0.000229,2]
[313211588,1706955041993,-178.05123538,0.000229,2]
[313211589,1706955042002,-501.5119066,0.00022901,2]
[313211590,1706955042011,-2281.13062069,0.00022901,2]
[313211591,1706955042021,-501.5119066,0.00022901,2]
[313211592,1706955042030,-2281.13062069,0.00022901,2]
[313211593,1706955042039,-242.94,0.00022937,2]
[313211594,1706955042048,-949.0,0.00022958,2]
[313211595,1706955042057,-644.289,0.00022958,2]
[313211596,1706955042066,-1953.776,0.00022958,2]
[313211597,1706955042075,-1844.58029223,0.00022996,2]
[313211598,1706955042084,-1081.82762118,0.00022997,2]
[313211599,1706955042093,-9237.40599735,0.00022997,2]
[313211600,1706955042102,-2917.34,0.00022997,2]
[313211601,1706955042111,-500.0,0.00022997,2]
[313211602,1706955042120,-500.0,0.00022997,2]
[313211603,1706955042129,-910.19,0.00022997,2]
[313211604,1706955042138,-500.0,0.00022997,2]
[313211605,1706955042146,-500.0,0.00022997,2]
[313211606,1706955042155,-614.11,0.00022997,2]
[313211607,1706955042165,-500.0,0.00022997,2]
[313211608,1706955042175,-646.99,0.00022997,2]
[313211609,1706955042184,-2138.8,0.00022997,2]
[313211610,1706955042193,-500.0,0.00022997,2]
[313211611,1706955042202,-500.0,0.00022997,2]
[313211612,1706955042211,-500.0,0.00022997,2]
[313211613,1706955042220,-608.15,0.00022997,2]
[313211614,1706955042229,-500.0,0.00022997,2]
[313211615,1706955042238,-535.36,0.00022997,2]
[313211616,1706955042247,-1082.01,0.00022997,2]
[313211617,1706955042256,-500.0,0.00022997,2]
[313211618,1706955042265,-677.35,0.00022997,2]
[313211619,1706955042274,-500.0,0.00022997,2]
[313211620,1706955042283,-500.0,0.00022997,2]
[313211621,1706955042292,-500.0,0.00022997,2]
[313211622,1706955042301,-2390.13,0.00022997,2]
[313211623,1706955042310,-500.0,0.00022997,2]
[313211624,1706955042320,-803.36,0.00022997,2]
[313211625,1706955042329,-523.62,0.00022997,2]
[313211626,1706955042338,-500.0,0.00022997,2]
[313211627,1706955042347,-500.0,0.00022997,2]
[313211628,1706955042356,-1176.61,0.00022997,2]
[313211629,1706955042365,-500.0,0.00022997,2]
[313211630,1706955042373,-801.04,0.00022997,2]
[313211631,1706955042382,-500.0,0.00022997,2]
[313211632,1706955042391,-575.56,0.00022997,2]
[313211633,1706955042399,-294.4223177,0.00022997,2]
[313211634,1706955042408,-1705.96,0.00022997,2]
[313211635,1706955042418,-500.0,0.00022997,2]
[313211636,1706955042426,-1482.24,0.00022997,2]
[313211637,1706955042435,-507.9,0.00022997,2]
[313211638,1706955042445,-500.0,0.00022997,2]
[313211639,1706955042454,-500.0,0.00022997,2]
[313211640,1706955042464,-500.0,0.00022997,2]
[313211641,1706955042473,-500.0,0.00022997,2]
[313211642,1706955042482,-500.0,0.00022997,2]
[313211643,1706955042491,-500.0,0.00022997,2]
[313211644,1706955042500,-711.59,0.00022997,2]
[313211645,1706955042510,-500.0,0.00022997,2]
[313211646,1706955042519,-804.46,0.00022997,2]
[313211647,1706955042528,-500.0,0.00022997,2]
[313211648,1706955042537,-500.0,0.00022997,2]
[313211649,1706955042546,-535.21,0.00022997,2]
[313211650,1706955042555,-676.64,0.00022997,2]
[313211651,1706955042660,-500.0,0.00022997,2]
[313211652,1706955042670,-500.0,0.00022997,2]
[313211653,1706955042680,-500.0,0.00022997,2]
[313211654,1706955042689,-500.0,0.00022997,2]
[313211655,1706955042698,-513.0710692,0.00022997,2]
[313211656,1706955042707,-1233.21,0.00022997,2]
[313211657,1706955042716,-1126.83,0.00022997,2]
[313211658,1706955042934,-992.8,0.00022997,2]
[313211659,1706955042943,-500.0,0.00022997,2]
[313211660,1706955042952,-500.0,0.00022997,2]
[313211661,1706955042961,-500.0,0.00022997,2]
[313211662,1706955042971,-500.0,0.00022997,2]
[313211663,1706955042980,-500.0,0.00022997,2]
[313211664,1706955042989,-500.0,0.00022997,2]
[313211665,1706955042998,-153.75515781,0.00022997,2]
[313211666,1706955043007,-500.0,0.00022997,2]
[313211667,1706955043017,-500.0,0.00022997,2]
[313211668,1706955043027,-500.0,0.00022997,2]
[313211669,1706955043037,-690.17,0.00022997,2]
[313211670,1706955043046,-604.83,0.00022997,2]
[313211671,1706955043058,-198.31990225,0.00022998,2]
[313211672,1706955043067,-8285.66587493,0.00022998,2]
[313211673,1706955043078,-500.0,0.00022998,2]
[313211674,1706955043088,-500.0,0.00022998,2]
[313211675,1706955043098,-599.86,0.00022998,2]
[313211676,1706955043108,-647.13,0.00022998,2]
[313211677,1706955043118,-500.0,0.00022998,2]
[313211678,1706955043128,-500.0,0.00022998,2]
[313211679,1706955043137,-500.0,0.00022998,2]
[313211680,1706955043146,-500.0,0.00022998,2]
[313211681,1706955043155,-500.0,0.00022998,2]
[313211682,1706955043165,-500.0,0.00022998,2]
[313211683,1706955043176,-500.0,0.00022998,2]
[313211684,1706955043186,-500.0,0.00022998,2]
[313211685,1706955043195,-500.0,0.00022998,2]
[313211686,1706955043204,-500.0,0.00022998,2]
[313211687,1706955043214,-500.0,0.00022998,2]
[313211689,1706955043223,-500.0,0.00022998,2]
[313211691,1706955043232,-500.0,0.00022998,2]
[313211693,1706955043241,-500.0,0.00022998,2]
[313211694,1706955043250,-500.0,0.00022998,2]
[313211696,1706955043258,-500.0,0.00022998,2]
[313211697,1706955043269,-500.0,0.00022998,2]
[313211699,1706955043278,-541.27,0.00022998,2]
[313211701,1706955043286,-500.0,0.00022998,2]
[313211703,1706955043295,-500.0,0.00022998,2]
[313211705,1706955043304,-500.0,0.00022998,2]
[313211707,1706955043314,-500.0,0.00022998,2]
[313211708,1706955043322,-500.0,0.00022998,2]
[313211709,1706955043331,-500.0,0.00022998,2]
[313211710,1706955043341,-661.16,0.00022998,2]
[313211711,1706955043350,-500.0,0.00022998,2]
[313211712,1706955043361,-500.0,0.00022998,2]
[313211713,1706955043373,-500.0,0.00022998,2]
[313211714,1706955043382,-531.52697421,0.00022998,2]
[313211715,1706955043394,-500.0,0.00022998,2]
[313211716,1706955043406,-857.56,0.00022998,2]
[313211717,1706955043424,-500.0,0.00022998,2]
[313211718,1706955043436,-510.86,0.00022998,2]
[313211719,1706955043446,-828.85,0.00022998,2]
[313211720,1706955043456,-500.0,0.00022998,2]
[313211721,1706955043467,-500.0,0.00022998,2]
[313211722,1706955043478,-532.53,0.00022998,2]
[313211723,1706955043487,-500.0,0.00022998,2]
[313211724,1706955043498,-574.67842154,0.00022998,2]
[313211725,1706955043508,-164.71138132,0.00022998,2]
[313211726,1706955043518,-177.09920283,0.00022998,2]
[313211727,1706955043527,-662.08,0.00022998,2]
[313211728,1706955043538,-2692.23,0.00022998,2]
[313211729,1706955043547,-500.0,0.00022998,2]
[313211730,1706955043557,-493.70030386,0.00022998,2]
[313211731,1706955043566,-500.0,0.00022998,2]
[313211732,1706955043576,-500.0,0.00022998,2]
[313211733,1706955043585,-2615.31,0.00022998,2]
[313211734,1706955043594,-500.0,0.00022998,2]
[313211735,1706955043604,-505.27,0.00022998,2]
[313211736,1706955043613,-500.0,0.00022998,2]
[313211737,1706955043622,-500.0,0.00022998,2]
[313211738,1706955043631,-500.0,0.00022998,2]
[313211739,1706955043641,-500.0,0.00022998,2]
[313211740,1706955043650,-1059.16,0.00022998,2]
[313211741,1706955043660,-500.0,0.00022998,2]
[313211742,1706955043670,-500.0,0.00022998,2]
[313211743,1706955043679,-580.53515399,0.00022998,2]
[313211744,1706955043689,-500.0,0.00022998,2]
[313211745,1706955043698,-500.0,0.00022998,2]
[313211746,1706955043707,-500.0,0.00022998,2]
[313211747,1706955043717,-500.0,0.00022998,2]
[313211748,1706955043934,-2207.89,0.00022998,2]
[313211749,1706955043946,-500.0,0.00022998,2]
[313211750,1706955043956,-500.0,0.00022998,2]
[313211751,1706955043965,-500.0,0.00022998,2]
[313211752,1706955043975,-500.0,0.00022998,2]
[313211753,1706955043984,-500.0,0.00022998,2]
[313211754,1706955043993,-500.0,0.00022998,2]
[313211755,1706955044002,-500.0,0.00022998,2]
[313211756,1706955044011,-500.0,0.00022998,2]
[313211757,1706955044021,-500.0,0.00022998,2]
[313211758,1706955044030,-1538.14,0.00022998,2]
[313211759,1706955044039,-500.0,0.00022998,2]
[313211760,1706955044048,-500.0,0.00022998,2]
[313211761,1706955044057,-821.9,0.00022998,2]
[313211762,1706955044067,-500.0,0.00022998,2]
[313211763,1706955044076,-500.0,0.00022998,2]
[313211764,1706955044085,-500.0,0.00022998,2]
[313211765,1706955044094,-9306.37,0.00022998,2]
[313211766,1706955044104,-500.0,0.00022998,2]
[313211767,1706955044114,-523.74,0.00022998,2]
[313211768,1706955044124,-500.0,0.00022998,2]
[313211769,1706955044133,-299.57990972,0.00022998,2]
[313211770,1706955044143,-500.0,0.00022998,2]
[313211771,1706955044152,-500.0,0.00022998,2]
[313211772,1706955044161,-500.0,0.00022998,2]
[313211773,1706955044171,-530.96,0.00022998,2]
[313211774,1706955044180,-500.0,0.00022998,2]
[313211775,1706955044189,-500.0,0.00022998,2]
[313211776,1706955044199,-500.0,0.00022998,2]
[313211777,1706955044210,-501.93,0.00022998,2]
[313211778,1706955044219,-888.55,0.00022998,2]
[313211779,1706955044228,-538.83,0.00022998,2]
[313211780,1706955044237,-500.0,0.00022998,2]
[313211781,1706955044247,-500.0,0.00022998,2]
[313211782,1706955044256,-1043.84,0.00022998,2]
[313211783,1706955044266,-500.0,0.00022998,2]
[313211784,1706955044276,-545.25,0.00022998,2]
[313211785,1706955044287,-500.0,0.00022998,2]
[313211786,1706955044298,-500.0,0.00022998,2]
[313211787,1706955044310,-610.31,0.00022998,2]
[313211788,1706955044319,-396.39029103,0.00022998,2]
[313211789,1706955044330,-11258.80456482,0.00022998,2]
[313211790,1706955044352,-723.71543518,0.00022998,2]
[313211791,1706955044361,-500.0,0.00022998,2]
[313211792,1706955044371,-500.0,0.00022998,2]
[313211793,1706955044381,-534.64,0.00022998,2]
[313211794,1706955044391,-500.0,0.00022998,2]
[313211795,1706955044400,-500.0,0.00022998,2]
[313211796,1706955044409,-1734.0,0.00022998,2]
[313211797,1706955044420,-500.0,0.00022998,2]